bitfinex-derivatives/quotes_ETHF0:USTF0_20240907
["timestamp","ask_amount","ask_price","bid_price","bid_amount"]
[1725693754461,0.43801,2283.6,2283.5,3.2078]
[1725693755770,0.438,2283.7,2283.5,3.2078]
[1725693756068,0.43801,2283.6,2283.5,3.2078]
[1725693757456,0.43801,2283.6,2283.2,1.53859]
[1725693757663,0.43801,2283.6,2283.5,3.2078]
[1725693758266,0.43798,2283.8,2283.5,3.2078]
[1725693758571,0.43799,2283.7,2283.5,3.2078]
[1725693759469,0.43801,2283.6,2283.5,3.2078]
[1725693761080,0.58229008,2283.9,2283.3,3.2078]
[1725693761081,0.43804,2283.5,2283.3,3.2078]
[1725693761281,1.09498,2283.7,2283.3,3.2078]
[1725693761577,0.43803,2283.5,2283.3,3.2078]
[1725693761973,0.43802,2283.6,2283.3,3.64586]
[1725693762381,0.43794,2284.0,2283.4,4.3792]
[1725693762577,0.43794,2284.0,2283.3,12.2378]
[1725693762578,0.43794,2284.0,2283.9,3.2078]
[1725693765677,0.43797,2283.9,2283.7,0.732]
[1725693766280,0.43797,2283.8,2283.7,0.357]
[1725693766576,0.81887,2283.8,2283.5,3.2078]
[1725693766776,0.81887,2283.8,2283.5,3.5821]
[1725693767083,0.438,2283.7,2283.5,3.5821]
[1725693767788,0.81888,2283.8,2283.5,4.02013]
[1725693767984,0.43798,2283.8,2283.5,3.5821]
[1725693768393,0.43799,2283.7,2283.5,3.5821]
[1725693769990,0.43799,2283.8,2283.5,4.02012]
[1725693770587,1.47577,2284.0,2283.5,3.5821]
[1725693770588,0.43799,2283.7,2283.5,3.5821]
[1725693770989,0.43798,2283.8,2283.5,3.5821]
[1725693771392,0.43798,2283.8,2283.5,4.02012]
[1725693772396,0.438,2283.7,2283.5,3.5821]
[1725693773486,3.03,2283.8,2283.2,3.5652]
[1725693773690,0.43803,2283.5,2283.2,3.2078]
[1725693774001,0.43805,2283.4,2283.2,3.2078]
[1725693774598,0.43804,2283.5,2283.2,3.2078]
[1725693774989,0.43805,2283.4,2283.2,3.2078]
[1725693776295,0.43804,2283.5,2283.2,3.64588]
[1725693778193,0.43804,2283.5,2283.2,3.2078]
[1725693778399,0.43805,2283.4,2283.2,3.2078]
[1725693780093,0.43805,2283.4,2283.3,3.2078]
[1725693781904,0.43814,2282.9,2282.8,3.2078]
[1725693783493,4.81894,2282.9,2282.8,3.2078]
[1725693786806,0.43819,2282.7,2282.3,0.3893]
[1725693787098,0.43819,2282.7,2282.6,3.2078]
[1725693787298,0.43817,2282.8,2282.6,3.2078]
[1725693787504,5.58158,2283.1,2282.6,3.2078]
[1725693787505,0.43815,2282.9,2282.7,0.373]
[1725693788002,0.43815,2282.9,2282.6,3.2078]
[1725693788599,0.43816,2282.8,2282.6,3.2078]
[1725693788805,0.43815,2282.9,2282.6,3.2078]
[1725693789201,4.7009305,2283.0,2282.6,3.2078]
[1725693789506,0.43821,2282.6,2282.4,0.373]
[1725693789702,0.43823,2282.5,2282.3,3.5971]
[1725693789998,0.43821,2282.6,2282.3,3.5971]
[1725693791103,0.43822,2282.5,2282.3,3.5971]
[1725693794507,0.79461,2282.6,2282.3,3.5971]
[1725693794909,0.43821,2282.6,2282.3,3.5971]
[1725693796512,0.81988,2282.7,2282.3,3.5971]
[1725693796712,0.81988,2282.7,2282.6,3.2078]
[1725693797415,0.3817,2282.7,2282.6,3.2078]
[1725693797600,0.81988,2282.7,2282.6,3.2078]
[1725693798217,0.3817,2282.7,2282.6,3.2078]
[1725693798607,0.3714,2282.9,2282.6,7.5886]
[1725693798814,0.43813,2283.0,2282.7,0.378]
[1725693799012,0.43813,2283.0,2282.9,3.2078]
[1725693799811,0.43815,2282.9,2282.7,0.7509]
[1725693800015,0.3934,2283.1,2282.7,3.9587]
[1725693800315,0.43816,2282.8,2282.7,3.2078]
[1725693801215,1.09534,2283.0,2282.4,3.2078]
[1725693801515,0.80059,2282.7,2282.4,3.64604]
[1725693801924,0.4382,2282.6,2282.4,3.2078]
[1725693802613,0.43822,2282.5,2282.4,3.2078]
[1725693803718,0.43821,2282.6,2282.4,3.64604]
[1725693804017,0.3624,2282.7,2282.4,3.2078]
[1725693804209,5.38128,2283.1,2282.5,4.3808]
[1725693804210,1.78008,2283.1,2282.5,4.3808]
[1725693804408,10.027,2283.4,2283.0,3.2078]
[1725693804409,4.81008,2283.4,2283.0,3.2078]
[1725693804619,0.43816,2282.8,2282.7,3.2078]
[1725693804825,0.43816,2282.8,2282.7,3.5874]
[1725693805118,0.43816,2282.9,2282.7,3.9645]
[1725693805324,0.43816,2282.8,2282.7,3.9645]
[1725693805709,0.43815,2282.9,2282.7,3.9645]
[1725693806119,0.82433,2283.0,2282.7,8.78347]
[1725693806329,0.82433,2283.0,2282.7,4.40267]
[1725693807220,0.43816,2282.8,2282.7,3.9645]
[1725693807419,0.43816,2282.8,2282.7,3.2078]
[1725693807619,0.4382,2282.6,2282.4,3.9585]
[1725693807926,1.09538,2282.9,2282.4,3.9585]
[1725693807927,0.43819,2282.7,2282.4,3.9585]
[1725693808128,0.4382,2282.6,2282.4,3.9585]
[1725693808417,0.4382,2282.7,2282.4,3.9585]
[1725693808622,0.4382,2282.6,2282.4,3.9585]
[1725693810127,0.81389,2282.7,2282.4,3.9585]
[1725693811222,0.4382,2282.6,2282.4,3.9585]
[1725693812620,0.81389,2282.7,2282.4,3.9585]
[1725693813425,0.4382,2282.6,2282.4,3.9585]
[1725693813620,0.799,2282.6,2282.4,3.9585]
[1725693813926,0.3608,2282.6,2282.4,3.9585]
[1725693815322,4.98788,2283.1,2282.5,4.3808]
[1725693815538,1.78008,2283.4,2283.3,0.43807]
[1725693815823,0.378,2283.6,2283.3,3.64586]
[1725693816028,0.81601,2283.6,2283.3,3.2078]
[1725693816232,0.378,2283.6,2283.3,3.64587]
[1725693817332,0.378,2283.6,2283.4,0.3705]
[1725693817631,0.43798,2283.8,2283.4,0.80855]
[1725693817832,0.43798,2283.8,2283.5,0.3657]
[1725693818033,0.43799,2283.7,2283.5,0.3657]
[1725693820330,0.43799,2283.7,2283.4,0.3705]
[1725693823534,3.8144,2283.9,2283.4,0.3705]
[1725693823535,0.43802,2283.6,2283.4,0.3705]
[1725693825840,0.438,2283.7,2283.4,0.3705]
[1725693826637,0.43801,2283.6,2283.4,0.3705]
[1725693827241,4.3792,2283.6,2283.3,3.2078]
[1725693827442,0.7707,2283.5,2283.3,3.2078]
[1725693827638,0.3673,2283.4,2283.3,3.2078]
[1725693829246,0.80535,2283.4,2283.3,3.2078]
[1725693829641,0.3673,2283.4,2283.3,3.2078]
[1725693830647,0.80535,2283.4,2283.3,3.2078]
[1725693831442,0.3673,2283.4,2283.3,3.2078]
[1725693832154,0.3673,2283.4,2283.1,0.3657]
[1725693832449,0.3673,2283.4,2283.2,3.2078]
[1725693832645,0.80535,2283.4,2283.2,3.2078]
[1725693833263,0.3673,2283.4,2283.2,3.2078]
[1725693833564,0.80535,2283.4,2283.2,3.2078]
[1725693834162,0.3673,2283.4,2283.2,3.2078]
[1725693837968,0.80535,2283.4,2283.2,3.2078]
[1725693840565,0.3673,2283.4,2283.2,3.2078]
[1725693840870,0.3673,2283.4,2283.2,3.64588]
[1725693841069,0.3673,2283.4,2283.2,3.2078]
[1725693841563,0.438,2283.7,2283.3,0.43806]
[1725693841769,0.438,2283.7,2283.5,3.2078]
[1725693841963,1.698,2283.7,2283.5,3.2078]
[1725693842367,1.91721981,2283.7,2283.5,3.2078]
[1725693842571,0.43801,2283.6,2283.5,3.2078]
[1725693842758,0.43803,2283.5,2283.1,4.4062]
[1725693843166,0.3856,2283.4,2283.1,4.4062]
[1725693844461,0.43802,2283.6,2283.2,0.43808]
[1725693844767,1.47921981,2283.7,2283.1,8.3481]
[1725693844768,1.47921981,2283.7,2283.4,3.64585]
[1725693844970,1.91720981,2283.7,2283.5,0.3946]
[1725693848058,0.21921981,2283.7,2283.5,0.3946]
[1725693849662,0.21921981,2283.7,2283.6,0.3738]
[1725693850666,0.21921981,2283.7,2283.5,0.3946]
[1725693857169,4.3792,2283.6,2283.2,1.13275347]
[1725693857473,3.03,2283.4,2283.1,3.2078]
[1725693857776,3.68935065,2283.6,2283.1,3.6459]
[1725693857969,3.68935065,2283.6,2283.2,0.381]
[1725693858173,0.43803,2283.5,2283.2,0.381]
[1725693858372,3.25133065,2283.6,2283.2,0.381]
[1725693858373,0.65935065,2283.6,2283.2,0.381]
[1725693858575,0.7634,2283.8,2283.4,3.2078]
[1725693858771,0.66209153,2283.7,2283.4,3.2078]
[1725693859879,0.43801,2283.6,2283.4,3.2078]
[1725693860076,0.66209153,2283.7,2283.4,3.2078]
[1725693860578,0.66209153,2283.7,2283.4,4.34055347]
[1725693861071,0.43802,2283.6,2283.4,3.2078]
[1725693861272,0.43802,2283.6,2283.4,4.34055347]
[1725693861976,0.43803,2283.5,2283.4,4.34055347]
[1725693862177,0.43803,2283.5,2283.3,1.49685347]
[1725693862381,0.43803,2283.5,2283.4,1.13275347]
[1725693862671,0.43803,2283.5,2283.3,1.49685347]
[1725693862879,0.43803,2283.5,2283.4,1.13275347]
[1725693863080,0.43803,2283.5,2283.4,4.34055347]
[1725693863274,0.43803,2283.5,2283.4,3.2078]
[1725693863673,4.81723,2283.5,2283.4,3.2078]
[1725693864083,0.43803,2283.5,2283.4,3.2078]
[1725693864280,0.43803,2283.5,2283.4,4.34055347]
[1725693864479,0.43803,2283.5,2283.4,3.2078]
[1725693869082,0.43803,2283.5,2283.2,2.25285347]
[1725693869278,0.43803,2283.5,2283.4,3.2078]
[1725693874181,0.43805,2283.4,2283.3,1.13275347]
[1725693874490,0.43807,2283.3,2283.2,1.13275347]
[1725693874693,0.43809,2283.2,2283.1,4.34055347]
[1725693877193,0.43809,2283.2,2283.1,1.13275347]
[1725693877194,2.79331,2283.2,2283.1,1.13275347]
[1725693877387,2.79331,2283.2,2283.0,1.70244993]
[1725693877388,1.69809,2283.2,2282.8,0.95375347]
[1725693877582,1.1047,2283.4,2283.0,3.2078]
[1725693877886,0.43807,2283.3,2283.0,3.2078]
[1725693878089,0.43809,2283.2,2283.1,0.7379]
[1725693879086,0.43811,2283.1,2283.0,3.2078]
[1725693884697,1.09525,2283.2,2282.7,1.0823]
[1725693884898,0.43814,2283.0,2282.7,1.0823]
[1725693885095,0.43814,2283.0,2282.7,1.52048]
[1725693885294,1.26,2283.0,2282.7,0.3577]
[1725693885496,0.43816,2282.8,2282.6,3.2078]
[1725693885797,2.84016,2282.9,2282.6,3.2078]
[1725693885998,2.47566,2282.9,2282.6,3.646]
[1725693886295,0.7775,2282.9,2282.6,3.2078]
[1725693886701,0.43818,2282.8,2282.6,3.2078]
[1725693886898,0.43807,2283.3,2282.7,4.3808]
[1725693887203,0.43807,2283.3,2283.1,3.2078]
[1725693887497,0.43807,2283.3,2283.2,0.3911]
[1725693887701,0.43807,2283.3,2283.2,0.7777]
[1725693891690,3.43278,2283.4,2283.2,0.7777]
[1725693891691,3.87084,2283.4,2283.2,0.7777]
[1725693892599,2.09076,2283.4,2283.2,0.7777]
[1725693892801,0.43807,2283.3,2283.2,0.7777]
[1725693893302,2.09076,2283.4,2283.2,0.7777]
[1725693893701,2.09076,2283.4,2283.2,1.1374]
[1725693894398,0.43807,2283.3,2283.2,1.1374]
[1725693894902,2.09076,2283.4,2283.2,1.1374]
[1725693895811,2.09076,2283.4,2283.3,3.2078]
[1725693900002,2.09076,2283.4,2283.2,0.7777]
[1725693900199,2.09076,2283.4,2283.3,3.2078]
[1725693904703,4.30274,2283.8,2283.3,3.2078]
[1725693904704,8.09173,2284.3,2283.7,0.43799]
[1725693904910,1.78008,2284.4,2284.3,0.43788]
[1725693905109,0.7298,2284.8,2284.3,7.5854]
[1725693905302,1.16758,2284.8,2284.7,3.2078]
[1725693905506,0.3853,2285.3,2284.7,3.64559]
[1725693905702,0.43771,2285.2,2285.0,3.2078]
[1725693905902,1.1963,2285.3,2285.0,3.2078]
[1725693906103,0.79418,2285.4,2285.0,3.2078]
[1725693906303,0.3565,2285.4,2285.0,3.2078]
[1725693906510,0.3565,2285.4,2284.9,3.2078]
[1725693906710,0.3565,2285.4,2284.5,3.2078]
[1725693906711,0.43774,2285.0,2284.5,3.2078]
[1725693906906,0.43774,2285.0,2284.8,3.2078]
[1725693907713,0.43776,2284.9,2284.8,3.2078]
[1725693907907,3.4153,2285.3,2284.8,3.2078]
[1725693908108,0.43775,2285.0,2284.8,3.2078]
[1725693908804,0.43776,2284.9,2284.8,3.2078]
[1725693912512,0.43782,2284.6,2284.4,3.5987]
[1725693912708,0.43781,2284.7,2284.4,3.5987]
[1725693912910,0.43782,2284.6,2284.4,3.5987]
[1725693913104,0.43784,2284.5,2284.4,3.5987]
[1725693913312,0.43784,2284.5,2284.4,3.2078]
[1725693914302,0.43789,2284.3,2284.1,0.3654]
[1725693914512,0.43789,2284.3,2284.2,3.2078]
[1725693915816,4.81549,2284.3,2284.2,3.2078]
[1725693916114,0.43789,2284.3,2284.2,3.2078]
[1725693916508,0.767,2284.4,2283.9,3.2078]
[1725693916509,0.4379,2284.2,2283.9,3.2078]
[1725693917312,0.767,2284.4,2283.9,3.2078]
[1725693917313,0.43792,2284.1,2283.9,3.2078]
[1725693918610,0.43792,2284.1,2283.8,0.82197]
[1725693918815,0.43792,2284.1,2284.0,3.2078]
[1725693920609,0.43792,2284.1,2284.0,9.2078]
[1725693920812,0.4386,2285.5,2284.0,9.2078]
[1725693920813,4.11,2286.8,2285.6,1.09407]
[1725693921013,20.766,2288.5,2285.6,1.09407]
[1725693921014,1.55774,2287.7,2286.7,3.2078]
[1725693921220,1.09316,2287.5,2286.7,3.2078]
[1725693921518,0.43735,2287.1,2286.7,3.2078]
[1725693921730,0.43736,2287.0,2286.7,3.2078]
[1725693921921,0.43738,2286.9,2286.7,3.2078]
[1725693922418,3.03,2287.5,2286.7,3.2078]
[1725693922419,0.43735,2287.1,2286.7,3.2078]
[1725693922612,0.43735,2287.1,2287.0,3.2078]
[1725693923324,4.30094,2287.6,2287.0,3.2078]
[1725693923325,0.43733,2287.2,2287.0,3.2078]
[1725693923629,3.2078,2287.6,2287.0,3.2078]
[1725693923817,0.43733,2287.2,2287.0,3.2078]
[1725693924123,0.43734,2287.1,2287.0,3.2078]
[1725693927826,10.81014,2287.1,2287.0,3.2078]
[1725693928528,10.3728,2287.1,2286.7,3.2078]
[1725693928825,0.43739,2286.9,2286.7,3.2078]
[1725693929322,0.4374,2286.8,2286.7,3.2078]
[1725693930125,4.8102,2286.8,2286.7,3.2078]
[1725693930721,0.4374,2286.8,2286.7,3.2078]
[1725693932528,0.4374,2286.9,2286.7,3.2078]
[1725693934621,4.83556746,2287.1,2286.7,3.2078]
[1725693934822,0.4374,2286.8,2286.7,3.2078]
[1725693935224,4.8102,2286.8,2286.7,3.2078]
[1725693937728,4.3728,2286.8,2286.7,3.2078]
[1725693937927,4.8102,2286.8,2286.7,3.2078]
[1725693939529,0.4374,2286.8,2286.7,3.2078]
[1725693941527,4.8102,2286.8,2286.7,3.2078]
[1725693941830,0.4374,2286.8,2286.7,3.2078]
[1725693942726,0.4374,2286.8,2286.6,3.2078]
[1725693942923,0.43742,2286.7,2286.6,3.2078]
[1725693943127,0.3743,2287.1,2286.6,3.2078]
[1725693943536,0.43741,2286.8,2286.6,3.2078]
[1725693943746,1.0934,2287.0,2286.6,3.2078]
[1725693944036,5.72728373,2287.0,2286.6,3.2078]
[1725693944232,0.4374,2286.8,2286.6,3.2078]
[1725693944825,0.43742,2286.7,2286.6,3.2078]
[1725693946536,0.43741,2286.8,2286.6,3.2078]
[1725693947142,0.43741,2286.8,2286.2,0.43751]
[1725693947331,0.43741,2286.8,2286.6,3.2078]
[1725693947634,0.43742,2286.7,2286.6,3.2078]
[1725693947834,0.43741,2286.8,2286.6,3.2078]
[1725693948349,0.43742,2286.7,2286.6,3.2078]
[1725693948735,5.72728373,2287.0,2286.6,3.2078]
[1725693948736,0.43741,2286.8,2286.6,3.2078]
[1725693948929,0.43742,2286.7,2286.6,3.2078]
[1725693949138,0.4374,2286.8,2286.6,3.2078]
[1725693949835,4.81022,2286.7,2286.6,3.2078]
[1725693950034,0.43742,2286.7,2286.6,3.2078]
[1725693950236,4.81102,2286.7,2286.6,3.2078]
[1725693950428,0.43742,2286.7,2286.6,3.2078]
[1725693950842,0.4374,2286.8,2286.6,3.2078]
[1725693951640,0.43742,2286.7,2286.6,3.2078]
[1725693952140,0.43741,2286.8,2286.6,3.2078]
[1725693952734,0.43742,2286.7,2286.6,3.2078]
[1725693955336,0.43749,2286.3,2286.2,3.2078]
[1725693955537,0.43749,2286.3,2285.8,0.3832]
[1725693955538,1.09379,2286.2,2285.8,0.3832]
[1725693955743,1.09379,2286.2,2285.7,0.3904]
[1725693955744,0.43759,2285.8,2285.7,0.3904]
[1725693956339,4.81279,2285.8,2285.7,0.3904]
[1725693956543,0.43759,2285.8,2285.7,0.3904]
[1725693957035,0.43753,2286.1,2285.7,0.3904]
[1725693957245,0.43756,2286.0,2285.7,0.3904]
[1725693957537,6.2378,2286.3,2285.7,0.3904]
[1725693957740,0.43757,2285.9,2285.7,0.3904]
[1725693960350,0.43759,2285.8,2285.7,0.3904]
[1725693962749,0.43761,2285.7,2285.6,3.2078]
[1725693964851,1.09386,2286.1,2285.6,3.2078]
[1725693965047,0.43757,2285.9,2285.6,3.2078]
[1725693965347,0.43754,2286.1,2285.6,3.2078]
[1725693965544,7.702,2286.4,2285.9,3.2078]
[1725693965545,0.43753,2286.2,2285.9,3.2078]
[1725693965741,0.43753,2286.1,2286.0,0.3687]
[1725693965941,0.43752,2286.2,2286.0,0.3687]
[1725693966451,0.43753,2286.1,2286.0,0.7301]
[1725693966845,1.69755394,2286.4,2286.0,0.7301]
[1725693967754,0.43753,2286.1,2286.0,0.7301]
[1725693968352,1.09359,2286.7,2286.0,11.1045]
[1725693968551,0.43749,2286.4,2286.3,3.2078]
[1725693970862,0.4375,2286.3,2286.0,4.3003]
[1725693971757,0.43752,2286.2,2286.0,3.9379]
[1725693972149,0.43749,2286.4,2286.0,3.9379]
[1725693972656,0.4375,2286.3,2286.0,3.9379]
[1725693973550,0.43749,2286.4,2286.0,4.37544]
[1725693973746,0.43749,2286.3,2286.0,4.75974]
[1725693973950,0.22175036,2286.7,2286.0,4.3222]
[1725693974147,0.43748,2286.4,2286.0,4.75974]
[1725693974963,0.43748,2286.4,2286.3,3.2078]
[1725693977058,0.43753,2286.1,2286.0,3.9379]
[1725693977249,0.7668,2286.5,2286.0,3.9379]
[1725693977457,0.4375,2286.3,2286.0,3.9379]
[1725693977657,0.43753,2286.1,2286.0,3.9379]
[1725693978148,0.43753,2286.1,2286.0,3.2078]
[1725693978353,5.90576,2286.1,2286.0,3.2078]
[1725693978655,0.43753,2286.1,2286.0,3.2078]
[1725693980464,1.53136,2286.1,2286.0,3.2078]
[1725693981065,3.2078,2286.4,2286.0,13.5822]
[1725693981255,0.43745,2286.6,2286.3,3.2078]
[1725693981564,0.43753,2286.1,2286.0,3.2078]
[1725693982558,5.90576,2286.1,2286.0,3.2078]
[1725693982753,1.53136,2286.1,2286.0,3.2078]
[1725693983060,5.90576,2286.1,2286.0,3.2078]
[1725693985664,1.09337,2287.1,2286.0,16.6122]
[1725693985871,0.4374,2286.8,2286.5,3.2078]
[1725693986060,0.4374,2286.8,2286.6,0.3753]
[1725693986361,1.09337,2287.1,2286.6,0.3753]
[1725693986560,0.43739,2286.9,2286.6,0.3753]
[1725693987263,0.7625,2287.2,2286.6,4.7481]
[1725693987462,0.43737,2287.0,2286.6,3.4053]
[1725693988066,0.43739,2286.9,2286.6,3.4053]
[1725693988262,0.43739,2286.9,2286.6,0.3753]
[1725693988465,1.85584,2287.2,2286.6,4.7481]
[1725693988667,0.01608513,2287.1,2286.6,0.3753]
[1725693988863,0.43739,2286.9,2286.6,0.3753]
[1725693989163,0.4374,2286.8,2286.6,0.3753]
[1725693989564,0.43739,2286.9,2286.7,4.3728]
[1725693989768,0.43739,2286.9,2286.6,0.3753]
[1725693990267,1.09336,2287.1,2286.6,0.3753]
[1725693990472,0.01608569,2287.0,2286.6,0.3753]
[1725693990670,0.4374,2286.8,2286.6,0.3753]
[1725693991470,1.09336,2287.1,2286.6,0.3753]
[1725693991770,0.01608546,2287.0,2286.6,0.3753]
[1725693991972,0.43741,2286.8,2286.6,0.3753]
[1725693992370,1.09336,2287.1,2286.6,0.3753]
[1725693992371,0.43742,2286.7,2286.6,0.3753]
[1725693992569,0.43742,2286.7,2286.5,3.2078]
[1725693992769,1.09336,2287.1,2286.5,3.2078]
[1725693992968,1.09336,2287.1,2286.2,0.3596]
[1725693992969,3.03,2286.8,2286.2,0.3596]
[1725693993271,0.43746,2286.5,2286.2,0.3596]
[1725693994172,0.7589,2286.7,2286.2,0.3596]
[1725693994173,1.85248,2286.7,2286.2,0.3596]
[1725693994369,0.43749,2286.4,2286.2,0.3596]
[1725693995963,0.43747,2286.5,2286.2,0.3596]
[1725693996768,1.85248,2286.7,2286.1,3.595]
[1725693996769,4.12359,2286.6,2286.1,3.2078]
[1725693996970,0.01608812,2286.5,2286.1,3.2078]
[1725693997166,0.43751,2286.2,2286.1,3.2078]
[1725693997370,0.43751,2286.3,2286.1,3.2078]
[1725693998363,0.43751,2286.2,2286.1,3.2078]
[1725693998764,0.4375,2286.3,2286.1,3.2078]
[1725693999272,0.43741,2286.8,2286.3,0.43749]
[1725693999469,0.43739,2286.9,2286.4,4.37347]
[1725693999671,0.45348637,2286.8,2286.4,3.936]
[1725693999873,0.43737,2287.0,2286.7,3.2078]
[1725694000072,4.1492,2287.2,2286.7,3.2078]
[1725694000073,0.43738,2286.9,2286.7,3.2078]
[1725694000575,0.43737,2287.0,2286.7,3.2078]
[1725694001571,7.357,2287.2,2286.7,3.2078]
[1725694001779,0.43738,2286.9,2286.7,3.2078]
[1725694001972,7.357,2287.2,2286.7,3.2078]
[1725694001973,0.43737,2287.0,2286.7,3.2078]
[1725694003382,0.43737,2287.0,2286.6,3.2078]
[1725694003878,3.2078,2287.5,2286.9,6.2378]
[1725694004079,0.21430228,2288.5,2286.9,6.2378]
[1725694004080,3.2078,2288.5,2287.5,1.09316]
[1725694004382,0.01607681,2288.4,2287.9,6.2378]
[1725694004677,3.2078,2288.8,2288.3,0.4371]
[1725694004878,0.22043088,2289.0,2288.4,0.7624]
[1725694005079,3.2078,2289.1,2288.4,0.7624]
[1725694005080,0.43701,2288.9,2288.4,0.7624]
[1725694005277,3.2078,2289.0,2288.6,3.2078]
[1725694005583,0.43701,2288.9,2288.6,3.2078]
[1725694005781,3.2078,2289.0,2288.6,3.2078]
[1725694005782,0.43703,2288.8,2288.6,3.2078]
[1725694005976,0.220409,2289.1,2288.4,0.7624]
[1725694006175,3.2078,2289.4,2288.4,0.7624]
[1725694006176,3.2078,2289.4,2288.6,3.2078]
[1725694006677,0.43696,2289.1,2288.6,3.2078]
[1725694007176,3.2078,2289.1,2288.6,3.2078]
[1725694007379,0.43703,2288.7,2288.6,3.2078]
[1725694007681,3.2078,2288.7,2288.1,3.2078]
[1725694007882,0.43712,2288.3,2288.1,3.2078]
[1725694008084,3.2078,2288.8,2288.1,3.2078]
[1725694008398,3.2078,2288.8,2287.8,3.581]
[1725694008399,0.43715,2288.1,2287.8,3.581]
[1725694008694,5.02913606,2288.7,2287.8,3.581]
[1725694008891,3.2078,2288.9,2287.8,3.581]
[1725694009088,0.4371,2288.4,2287.8,3.581]
[1725694009285,3.2078,2288.9,2287.8,3.581]
[1725694009286,5.02913606,2288.7,2287.8,3.581]
[1725694009492,0.43708,2288.5,2288.1,3.2078]
[1725694009991,0.43709,2288.4,2288.1,3.2078]
[1725694010189,0.43702,2288.8,2288.1,3.2078]
[1725694010490,0.43702,2288.8,2288.2,0.3757]
[1725694010684,0.43711,2288.3,2288.1,3.2078]
[1725694010983,0.4371,2288.4,2288.1,3.2078]
[1725694011191,0.43711,2288.3,2288.1,3.2078]
[1725694011391,3.2078,2288.9,2287.9,0.3757]
[1725694011590,0.43712,2288.3,2287.9,0.3757]
[1725694011791,3.2078,2288.9,2287.9,0.3757]
[1725694011993,1.09254,2288.8,2287.9,0.3757]
[1725694012187,3.2078,2288.9,2288.1,3.64495]
[1725694012385,0.43705,2288.7,2288.1,3.64495]
[1725694012692,0.43706,2288.6,2288.1,3.2078]
[1725694012889,7.624,2289.0,2288.1,3.2078]
[1725694013081,0.43711,2288.3,2288.1,3.2078]
[1725694013587,0.43711,2288.3,2288.2,4.3704]
[1725694014788,1.09254,2288.8,2288.1,3.2078]
[1725694014789,0.43713,2288.2,2288.1,3.2078]
[1725694015089,7.624,2289.0,2288.1,3.2078]
[1725694015090,0.43701,2288.9,2288.1,3.2078]
[1725694015295,1.48682,2289.1,2288.0,4.03]
[1725694015296,0.43703,2288.8,2288.5,3.2078]
[1725694015485,0.43703,2288.8,2288.6,0.7174]
[1725694015903,0.3558,2289.3,2288.7,4.3696]
[1725694016086,0.43701,2288.9,2288.6,0.7174]
[1725694016290,0.43701,2288.9,2288.7,4.3688]
[1725694016291,0.437,2288.9,2288.7,4.3688]
[1725694016484,0.43698,2289.0,2288.8,4.3688]
[1725694016683,3.2078,2289.4,2288.9,3.2078]
[1725694016887,3.64471,2289.4,2288.9,3.64478]
[1725694017089,3.64471,2289.4,2289.0,0.3921]
[1725694017287,0.43691,2289.4,2289.0,0.3921]
[1725694017496,0.3723,2289.8,2289.0,0.3921]
[1725694017696,0.43695,2289.2,2289.0,0.3921]
[1725694017897,1.09211,2289.7,2289.0,0.3921]
[1725694018192,0.3723,2289.8,2289.0,0.3921]
[1725694018499,0.43698,2289.0,2288.9,3.2078]
[1725694019003,0.43698,2289.0,2288.9,7.5766]
[1725694019295,0.43698,2289.0,2288.9,3.2078]
[1725694019601,0.43698,2289.0,2288.9,7.5766]
[1725694019898,0.43696,2289.1,2288.9,7.5766]
[1725694020096,0.43695,2289.2,2288.9,9.2078]
[1725694020302,0.43695,2289.2,2288.9,3.2078]
[1725694020496,0.43693,2289.3,2289.0,4.3688]
[1725694020690,0.43693,2289.3,2288.9,3.64479]
[1725694021191,1.47202,2289.7,2288.9,3.64479]
[1725694021387,0.43693,2289.3,2288.9,3.2078]
[1725694021590,0.43693,2289.3,2289.0,0.3937]
[1725694021787,0.43693,2289.3,2289.2,3.2078]
[1725694022191,0.43689,2289.5,2289.2,13.5758]
[1725694022404,1.09207,2289.8,2289.3,0.7333]
[1725694022999,0.4369,2289.4,2289.3,0.7333]
[1725694023494,0.43688,2289.6,2289.3,5.1013]
[1725694023801,0.4369,2289.4,2289.3,0.7333]
[1725694023993,0.4369,2289.4,2289.3,0.3715]
[1725694025988,1.09212,2289.7,2289.2,3.2078]
[1725694025989,0.43692,2289.3,2289.2,3.2078]
[1725694026199,0.43695,2289.2,2289.0,0.3937]
[1725694026405,1.09225,2289.5,2289.0,0.3937]
[1725694026599,0.43695,2289.2,2289.0,0.3937]
[1725694026797,0.437,2288.9,2288.8,0.3665]
[1725694027003,0.43701,2288.8,2288.7,0.3618]
[1725694027501,0.43701,2288.8,2288.7,4.7306]
[1725694030807,1.52955,2288.8,2288.7,4.3688]
[1725694030997,7.5766,2288.8,2288.1,3.2078]
[1725694031313,0.43716,2288.1,2287.9,0.3709]
[1725694031807,0.43716,2288.1,2288.0,4.3704]
[1725694032305,0.43717,2288.0,2287.9,0.3709]
[1725694032706,1.09264,2288.6,2287.9,10.7413]
[1725694032906,1.1204,2288.7,2288.1,3.2078]
[1725694033305,1.1204,2288.7,2288.0,0.3882]
[1725694033306,0.43715,2288.1,2288.0,0.3882]
[1725694033807,0.43715,2288.1,2288.0,4.7586]
[1725694034112,0.43717,2288.0,2287.9,0.3709]
[1725694034506,0.43717,2288.0,2287.9,4.7413]
[1725694035102,0.43715,2288.1,2287.9,10.7413]